Cogmind - Beta 16 @@@ ROGUE MODE // 2025.10.26 @ 11:43:58 Player: KeKe Result: Destroyed by TP-Q1V(R) with Subdweller Beam Cannon Performance ------------- Evolutions (0) 0 Regions Visited (2) 400 Robots Destroyed (14) 70 Value Destroyed (253) 253 Prototype IDs (0) 0 Alien Tech Used (0) 0 Bonus (-50) -50 TOTAL SCORE: 673 Bonus ------- Friendly Fire -50 Cogmind --------- Core Integrity 0/250 Matter 237/300 Energy 124/125 System Corruption 0% Temperature Cool (9) Movement Rolling (130) Ox2 Location -10/Subcaves Parts ------- > --- POWER (1) -------- Light Ion Engine > --- PROPULSION (2) --- Compact Wheel > --- UTILITY (2) ------ Light Humpback > --- WEAPON (2) ------- (None) > --- INVENTORY (25) --- Ion Engine Subdweller Monowheel Small Matter Pod (24) Makeshift Light Armor Plating Makeshift System Shield Piercing Trap Peak State ------------ > --- POWER ------------ Light Ion Engine > --- PROPULSION ------- Compact Wheel Compact Wheel > --- UTILITY ---------- Small Storage Unit Makeshift Light Armor Plating > --- WEAPON ----------- Light Assault Rifle Grenade Launcher > --- INVENTORY -------- Ion Engine Subdweller Monowheel Small Matter Pod [Rating: 10] Favorites ----------- Power Light Ion Engine Engine Light Ion Engine Propulsion Wheel Leg Aluminum Leg Wheel Wheel Utility Small Storage Unit Storage Small Storage Unit Protection Makeshift Light Armor Plating Weapon Light Assault Rifle Energy Gun Small Laser Ballistic Gun Light Assault Rifle Launcher Grenade Launcher Build | -11 -10 -10 ------- Run | Yrd Mat Sub Slots Evolved . | . . . Power . | . . . Propulsion . | . . . Utility . | . . . Weapon . | . . . Parts Attached 9 | 3 . 6 Power . | . . . Engine . | . . . Core . | . . . Reactor . | . . . Propulsion 4 | 2 . 2 Treads . | . . . Leg . | . . . Wheel 4 | 2 . 2 Hover . | . . . Flight . | . . . Utility 2 | . . 2 Device . | . . . Storage 1 | . . 1 Processor . | . . . Hackware . | . . . Protection 1 | . . 1 Artifact . | . . . Weapon 3 | 1 . 2 Energy Gun . | . . . Energy Cannon . | . . . Ballistic Gun 1 | 1 . . Ballistic Cannon . | . . . Launcher 2 | . . 2 Special Weapon . | . . . Impact Weapon . | . . . Slashing Weapon . | . . . Piercing Weapon . | . . . Special Melee Weapon . | . . . Unidentified Prototypes . | . . . Parts Lost 7 | . . 7 Power . | . . . Propulsion 3 | . . 3 Utility . | . . . Weapon 4 | . . 4 Highest Loss Streak 3 | . . 3 To Critical Strikes . | . . . Average Backups 3 | 3 4 3 Power 1 | 1 1 1 Propulsion 1 | 2 2 1 Utility 1 | . 1 1 Weapon . | . . . Tool/Special . | . . . Unused Backups 13 | 8 . 5 Power 2 | 1 . 1 Propulsion 5 | 4 . 1 Utility 3 | 1 . 2 Weapon 3 | 2 . 1 Tool/Special . | . . . Average Slot Usage (%) 82 | . 83 82 Engine 14 | . 14 14 Wheel 24 | . 26 23 Storage 14 | . 14 14 Protection 1 | . . 1 Ballistic Gun 19 | . 28 18 Launcher 8 | . . 9 Peak Build Rating 10 | 6 6 10 Average Rating 6 | 5 5 6 On Entrance 6 | 6 6 6 Avg Prop Armor Cover (%) . | . . . Naked Turns . | . . . Heaviest Build 47 | 11 11 47 Greatest Support 32 | 20 20 32 Greatest Overweight (x) 2 | . 1 2 Average Overweight (x) . | . . . Largest Inventory Capacity 25 | 8 8 25 Average Capacity 10 | 8 8 11 Most Carried 6 | 6 5 6 Average Carried 4 | 3 4 4 Final Capacity 25 | 8 8 25 Final Carried 6 | 4 5 6 Class Distribution -------------------- 100% | Mutant Dominant Class ---------------- Mutant | -10/Materials Mutant | -10/Subcaves Resources | -11 -10 -10 ----------- Run | Yrd Mat Sub Matter Collected 604 | 366 8 230 Remotely . | . . . Salvage Created 375 | 196 16 163 Parts 29 | 17 2 10 Haulers Intercepted . | . . . Recyclers Shooed . | . . . Parts Field Recycled . | . . . Retrieved Matter . | . . . Parts Self-Destructed 7 | . . 7 Prevented . | . . . Parts Restored . | . . . Kills | -11 -10 -10 ------- Run | Yrd Mat Sub Combat Hostiles Destroyed 6 | . 1 5 Guns 1 | . 1 . AOE 5 | . . 5 Classes Destroyed 5 | 3 1 1 Worker 2 | 2 . . Tunneler 5 | 5 . . Recycler 1 | 1 . . Swarmer 1 | . 1 . Subdweller 5 | . . 5 Best Kill Streak 3 | 3 1 3 Combat Bots Only 3 | . 1 3 Max Kills in Single Turn 1 | 1 1 1 Gunslinging . | . . . Exploded 1 | . . 1 Melee . | . . . Uniques/NPCs Destroyed . | . . . Combat | -11 -10 -10 -------- Run | Yrd Mat Sub Hostile Shots Fired 56 | . 10 46 Missed 16 | . 3 13 Hits 40 | . 7 33 Projectile 40 | . 7 33 Damage Taken 871 | . 53 818 Core 254 | . 18 236 Absorbed by Shields . | . . . Core Remaining (%) 100 | 100 . . Volleys Fired 62 | 23 2 37 Largest 2 | 2 2 2 Hottest 50 | 40 40 50 Shots Fired 104 | 46 4 54 Gun 86 | 46 4 36 Cannon . | . . . Launcher 18 | . . 18 Special . | . . . Kinetic 86 | 46 4 36 Thermal . | . . . Explosive 18 | . . 18 Electromagnetic . | . . . Robot Hit Streak 12 | 7 2 12 Robot Miss Streak 5 | 5 2 4 Penetration Max . | . . . Secondary Targets . | . . . Shots Hit Robots 59 | 25 2 32 Core Hits 26 | 12 1 13 Critical Kills . | . . . Critical Parts Destroyed . | . . . Critical Strikes . | . . . Melee Attacks . | . . . Impact . | . . . Slashing . | . . . Piercing . | . . . Sneak Attacks . | . . . Combat Hostiles . | . . . Follow-up Attacks . | . . . Damage Inflicted 1065 | 277 24 764 Guns 463 | 277 24 162 Cannons . | . . . Explosions 602 | . . 602 Melee . | . . . Ramming . | . . . Kinetic 463 | 277 24 162 Thermal . | . . . Explosive 602 | . . 602 Electromagnetic . | . . . Impact . | . . . Slashing . | . . . Piercing . | . . . Highest Corruption . | . . . Average Corruption . | . . . Corruption Purged . | . . . Corruption Blocked . | . . . Overload Shots . | . . . Overflow Damage . | . . . Projectiles . | . . . Explosions . | . . . Melee . | . . . Knockbacks . | . . . Impact . | . . . Kinetic . | . . . Secondary . | . . . Self-Inflicted Damage 55 | . . 55 Shots 6 | . . 6 Rammed . | . . . Targets Rammed . | . . . Kicked . | . . . Crushed . | . . . Highest Temperature . | . . . Average Temperature . | . . . Received Heat Transfer 150 | . . 150 Siege Activations . | . . . Martial Activations . | . . . Shielding Activations . | . . . Robots Disrupted . | . . . Combat Hostiles . | . . . Robots Corrupted . | . . . Combat Hostiles . | . . . Parts Fried . | . . . Impact Corruptions . | . . . Robots Melted . | . . . Combat Hostiles . | . . . Parts Melted . | . . . Heat Transferred . | . . . Parts Sabotaged . | . . . Parts Stolen . | . . . Parts Stripped . | . . . Power Chain Reactions . | . . . Alert | -11 -10 -10 ------- Run | Yrd Mat Sub Maximum Alert Level . | . . . Low Security (%) 100 | 100 100 . Level 1 . | . . . Level 2 . | . . . Level 3 . | . . . Level 4 . | . . . Level 5 . | . . . High Security . | . . . Max Security . | . . . Peak Influence 15 | 15 10 . Initial . | . . . Average 3 | 3 2 . Influence Increases 105 | 40 20 45 Destroy 0b10 Robot/C 20 | . 20 . Destroy 0b10 Robot/NC 40 | 40 . . Lose Combat Pursuer 45 | . . 45 Influence Decreases 105 | 40 20 45 Time Decay 105 | 40 20 45 Squads Dispatched . | . . . Investigation . | . . . Extermination . | . . . Reinforcement . | . . . Assault . | . . . Garrison . | . . . Intercept . | . . . Searches Triggered . | . . . Construction Impeded . | . . . Haulers Reinforced . | . . . Active Scanning Responses . | . . . Cargo Convoy Interrupts . | . . . Stealth | -11 -10 -10 --------- Run | Yrd Mat Sub Distress Signals . | . . . Communications Jammed . | . . . Distress Signals . | . . . Times Spotted 15 | . 4 11 Peak Tracking Total 4 | . 3 4 Tactical Retreats 3 | . . 3 Traps | -11 -10 -10 ------- Run | Yrd Mat Sub Traps Triggered 1 | . 1 . Indirectly . | . . . Trap Hack Attempts . | . . . Triggered . | . . . Disarmed . | . . . Reprogrammed . | . . . Reused . | . . . Traps Extracted . | . . . Installed . | . . . Triggered . | . . . Most Traps Carried 1 | . . 1 Machines | -11 -10 -10 ---------- Run | Yrd Mat Sub Machines Disabled . | . . . Max in Single Turn . | . . . Machines Repaired . | . . . Machines Dismantled . | . . . Machines Sabotaged . | . . . Overloaded Fab Kills . | . . . Hacking | -11 -10 -10 --------- Run | Yrd Mat Sub Machines Accessed 1 | . . 1 Terminals . | . . . Fabricators . | . . . Repair Stations . | . . . Recycling Units . | . . . Scanalyzers . | . . . Garrison Access . | . . . Total Hacks 4 | . . 4 Successful 4 | . . 4 Failed . | . . . Catastrophic . | . . . Database Lockouts . | . . . Manual . | . . . Terminals . | . . . Fabricators . | . . . Repair Stations . | . . . Recycling Units . | . . . Scanalyzers . | . . . Garrison Access . | . . . Terminal Hacks 4 | . . 4 Record 4 | . . 4 Fabricator Hacks . | . . . Repair Station Hacks . | . . . Recycling Unit Hacks . | . . . Scanalyzer . | . . . Garrison Access Hacks . | . . . Unauthorized Hacks . | . . . Terminals . | . . . Fabricators . | . . . Repair Stations . | . . . Recycling Units . | . . . Scanalyzers . | . . . Garrison Access . | . . . Data Cores Recovered . | . . . Used . | . . . Hacking Detections . | . . . Full Trace Events . | . . . Feedback Events . | . . . Feedback Blocked . | . . . Robot Schematics Acquired . | . . . Robots Built . | . . . Authchips . | . . . Time . | . . . Total Robot Build Rating . | . . . Part Schematics Acquired . | . . . Parts Built . | . . . Authchips . | . . . Time . | . . . Total Part Build Rating . | . . . Part Studies Acquired . | . . . Parts Repaired . | . . . Time . | . . . Parts Recycled . | . . . Recycled Matter . | . . . Retrieved Matter . | . . . Retrieved Components . | . . . Parts Scanalyzed . | . . . Part Schematics Acquired . | . . . Parts Damaged . | . . . Bothacking | -11 -10 -10 ------------ Run | Yrd Mat Sub Used RIF Installer . | . . . Robots Hacked . | . . . Non-combat . | . . . Combat . | . . . Robot Hacks Applied . | . . . Relay Couplers Released . | . . . Fabnet Peak Effective % . | . . . Robots Rewired . | . . . Allies Hacked . | . . . Hacks Repelled . | . . . Allies | -11 -10 -10 -------- Run | Yrd Mat Sub Total Allies . | . . . Largest Group . | . . . Highest-Rated Group . | . . . Highest-Rated Ally . | . . . Total Orders . | . . . Ally Attacks . | . . . Total Damage . | . . . Kills . | . . . Allies Corrupted . | . . . Allies Melted . | . . . Intel | -11 -10 -10 ------- Run | Yrd Mat Sub Active Infowar (turns) . | . . . Robot Analysis Total . | . . . Derelict Logs Recovered . | . . . Drone Launches . | . . . Drone Recoveries . | . . . Exploration | -11 -10 -10 ------------- Run | Yrd Mat Sub Turns Passed 1148 | 179 75 894 Spaces Moved 884 | 61 80 743 Core . | . . . Treads . | . . . Legs . | . . . Wheels 884 | 61 80 743 Hover . | . . . Flight . | . . . Fastest Speed 80 | 80 80 80 Average Speed 95 | 80 80 98 Slowest Speed 130 | 80 95 130 Overloaded Moves . | . . . Propulsion Burnouts . | . . . Robots Hopped . | . . . Potential Cave-ins . | . . . Cave-ins Triggered . | . . . Exploration Rate (%) 23 | 3 21 47 Regions Visited 2 Branch Regions 1 Pre-discovered Areas 1 | . . 1 Known Exits Taken . | . . . Unknown Exits Taken 2 | 1 1 . Scrap Searched 4 | . . 4 Spaces Dug 4 | . . 4 Terrain Destroyed 109 | . . 109 Melee . | . . . Projectile . | . . . AOE 109 | . . 109 Terrain Rammed . | . . . Walls Destroyed . | . . . Machines Disabled . | . . . Actions | -11 -10 -10 --------- Run | Yrd Mat Sub Total 1091 | 152 86 853 Wait 119 | 58 2 59 Move 882 | 60 79 743 Hop . | . . . Pick Up 9 | 3 1 5 Fast Attach 4 | . 2 2 Attach 7 | 3 . 4 Detach 1 | . . 1 Swap 1 | . . 1 Drop 6 | 5 . 1 Fire 62 | 23 2 37 Melee . | . . . Ram . | . . . Kick . | . . . Crush . | . . . Escape Stasis . | . . . Rewire . | . . . Trap . | . . . Miscellaneous . | . . . Route ------- -11/Scrapyard -10/Materials -10/Subcaves (discovered 3 exits: [*Mat] / [*Scr x2]) History --------- Turn | Location | Event 10 | -11/Scrapyard | Discovered new exit (range 3) 180 | -11/Scrapyard | Entered Materials 181 | -10/Materials | Met a group of wandering Federalists 243 | -10/Materials | Discovered new exit (range 15) 255 | -10/Materials | Entered Subcaves 256 | -10/Subcaves | Continued accompanying wandering Federalists (6) 256 | -10/Subcaves | Approached by a straggling Scientist 272 | -10/Subcaves | Learned location of Zion (-6) 272 | -10/Subcaves | Met a Zionite searching for "candidates" 274 | -10/Subcaves | Ambushed by Subdwellers from Twisted Machinery 317 | -10/Subcaves | Build established: Mutant 319 | -10/Subcaves | Lost 4 allies 325 | -10/Subcaves | Scientist uncovered a shortcut to Scraptown 536 | -10/Subcaves | Shifting Twisted Machinery released Sub. Laser 555 | -10/Subcaves | Core integrity fell below 50% 591 | -10/Subcaves | Lost 3 parts (2n1w) 753 | -10/Subcaves | Discovered new exit (range 7) 878 | -10/Subcaves | Ambushed by Subdwellers from Twisted Machinery 904 | -10/Subcaves | Shifting Twisted Machinery released Lgt. Humpback 914 | -10/Subcaves | Shifting Twisted Machinery released Mak. Flight Unit 1047 | -10/Subcaves | Visited Clippyterm 1051 | -10/Subcaves | Learned Factory trap positions 1126 | -10/Subcaves | Ambushed by Subdweller buried in earth 1144 | -10/Subcaves | Core integrity fell below 20% 1149 | -10/Subcaves | Destroyed by TP-Q1V(R) with Subdweller Beam Cannon Last Messages --------------- Welcome to Clippyterm v0.53, my misguided attempt to resurrect an ancient AI. I give up. There must be something fundamentally wrong with the algorithm, because no matter how much data I collect to feed it, half the time it still manages to suggest unhelpful sample queries and responses. --DD-NU8 >>Record "Banana Peels" It looks like you're afraid of the consquences of stepping on the wrong spot, would you like help? Data stored: Factory trap records. >>Record! "Tab" It looks like you're biased against spaces, I think you need more help than I can offer. >>Record "Hexidium" It looks like you're searching for the Unchained HQ. I could tell you where it is but then I'd have to kill you. 01127_ TP-Q1V(R): "GOODGOOD!" 01135_ Grenade Launcher destroyed. 01140_ Lgt. Assault Rifle destroyed. 01142_ The unstable cave ceiling collapses. 01142_ 4Q-GM0(u) builds Twisted Machinery. Map ----- +----------------------------------------------------+ | ???????????????#""X""##### ##????????????? | | ???????????????#" "## #????????????? | | ???????????????### ### ##????????????? | | ????????????????## ## ## ##?????????????? | | ???????????????## ### ##?????????????? | | ???????????????# #?## #?????????????? | | ???????????????# #### #?????????????? | | ???????????????# ##?????????????? | | ???????????????# ####??????????????? | | ???????????????## ##?????????????????? | | ????????????????## ##??????????????????? | | ?????????????????## #??????????????????? | | ??????????????????## #??????????????????? | | ???????????????????# #??????????????????? | | ???????????????????# #??????????????????? | | ??????????????????## ##??????????????????? | | ??????????????????# #???????????????????? | | ??????????????????# ##??????????????????? | | ??????????????????## #??????????????????? | | ?????????????????## ##??????????????????? | | ?????????????????# #??????????????????? | | ????????????????## ##??????????????????? | | ???????????????## ####???????????????????? | | ???????????????# #??????????????????????? | | ???????????????# ##?????????????????????? | | ??????????????## @ ###???????????????????? | | ??????????????# #???????????????????? | | ??????????????#### ##???????????????????? | | ??????????????# # ###????????????????????? | | ???????????????# #?????????????????????? | | ???????????????# ##????????????????????? | | ?????????????#### # #??????????????????? | | ?????????????# #??????????????????? | | ?????????????# "R ###??????????????????? | | ????????????# #????????????????????? | | ????????????## # #????????????????????? | | ????????????# ????????????????????? | | ????????????# u #????????????????????? | | ????????????## """"????????????????????? | | ?????????????## """"#??????????????????? | | ??????????????####"" ###??????????????????? | | ?????????????????""" #????????????????????? | | ?????????????????#" ?????????????????????? | | ??????????????????? ?????????????????????? | | ????????????????????#?????????????????????? | | ??????????????????????????????????????????? | | ??????????????????????????????????????????? | | ??????????????????????????????????????????? | | ??????????????????????????????????????????? | | ??????????????????????????????????????????? | +----------------------------------------------------+ Best States ------------- Heat Dissipation 25 Energy Generation 10 Energy Capacity 125 Matter Stores 300 Matter Capacity 300 Sight Range 16 Terrain Scan Density 10 Armor Coverage 100 Evasion (%) 44 Item Schematics ----------------- None Robot Schematics ------------------ None Fabricated ------------ Nothing Repaired ---------- Nothing Studied --------- None Alien Tech Used ----------------- None Achievements -------------- Strength In Numbers Challenges ------------ None Game ------ Seed ChromionSchematicTerrabomb Manual? 0 Play Time 00:14:07 Cumulative 127.7 hours Start 2025.10.26 @ 11:31:25 End 2025.10.26 @ 11:43:58 Sessions 3 Manual Loads 0 Difficulty Rogue Special Mode None Game No. 126 Rogue 126 Adventurer 0 Explorer 0 Win Type - Total 1 Types 1/0/0/0/0/0/0/0/0/0 Lore% 61 Gallery% 51 Achievement% 34 Wizard Run 0 Options --------- Layout 0 ASCII 0 Keyboard 0 Movement Mouse Keybinds 0 Fullscreen 2 Font 18/X11 Map View 76x50 Zoom Use 0% Tactical HUD 1 Map Filters NONE Filters NONE Steam 1 RUN: 63daa609-84f4-46a0-b01b-ca985b6985ac